Cogmind - Beta 9.1 @@@ ROGUE MODE // 2019.11.09 @ 18:58:25 Player: Rilt Result: Destroyed by Y-45 Defender with Heavy Assault Rifle Performance ------------- Evolutions (2) 1000 Regions Visited (3) 600 Robots Destroyed (42) 210 Value Destroyed (1203) 1203 Prototype IDs (1) 20 Alien Tech Used (0) 0 Bonus (0) 0 TOTAL SCORE: 3033 Bonus ------- None Cogmind --------- Core Integrity 0/550 Matter 153/300 Energy 89/100 System Corruption 0% Temperature Cool (9) Location -8/Materials Parts ------- Power (2) Propulsion (3) Compact Wheel Utility (3) High-capacity Storage Unit Advanced Signal Interpreter Weapon (3) Inventory (12) Improved Heat Sink High-capacity Matter Pod (200) High-capacity Matter Pod (200) Advanced Weight Redist. System Advanced Weight Redist. System Visual Processing Unit Improved Light Armor Plating Improved Light Armor Plating Hacking Suite Datajack Peak State ------------ Power Improved Ion Engine Propulsion Light Treads Light Treads Light Treads Utility High-capacity Storage Unit Improved Sensor Array Advanced Signal Interpreter Weapon Heavy Assault Rifle Heavy Assault Rifle Mini Grenade Launcher Inventory Improved Heat Sink High-capacity Matter Pod High-capacity Matter Pod Advanced Weight Redist. System Advanced Weight Redist. System Visual Processing Unit Medium Armor Plating Improved Light Armor Plating Improved Light Armor Plating Hacking Suite Improved Medium Laser Datajack [Rating: 19] Favorites ----------- Power Improved Ion Engine Engine Improved Ion Engine Propulsion Light Treads Treads Light Treads Wheel Wheel Utility High-capacity Storage Unit Device Improved Sensor Array Storage High-capacity Storage Unit Processor Signal Interpreter Protection Improved Light Armor Plating Weapon Heavy Assault Rifle Energy Gun Medium Laser Ballistic Gun Heavy Assault Rifle Ballistic Cannon Light Cannon Launcher Mini Grenade Launcher Build | -11 -10 -9 -8 ------- Run | Scr Mat Mat Mat Slots Evolved 4 | . . 2 2 Power 1 | . . . 1 Propulsion 1 | . . 1 . Utility 1 | . . 1 . Weapon 1 | . . . 1 Parts Attached 30 | 6 6 12 6 Power 6 | 1 2 2 1 Engine 6 | 1 2 2 1 Core . | . . . . Reactor . | . . . . Propulsion 7 | 2 . 4 1 Treads 4 | . . 4 . Leg . | . . . . Wheel 3 | 2 . . 1 Hover . | . . . . Flight . | . . . . Utility 9 | 1 2 4 2 Device 3 | . 2 1 . Storage 2 | 1 . 1 . Processor 2 | . . 1 1 Hackware . | . . . . Protection 2 | . . 1 1 Artifact . | . . . . Weapon 8 | 2 2 2 2 Energy Gun 2 | 1 . . 1 Energy Cannon . | . . . . Ballistic Gun 4 | 1 1 2 . Ballistic Cannon 1 | . 1 . . Launcher 1 | . . . 1 Special Weapon . | . . . . Impact Weapon . | . . . . Slashing Weapon . | . . . . Piercing Weapon . | . . . . Special Melee Weapon . | . . . . Unidentified Prototypes 1 | . . . 1 Parts Lost 17 | . . 6 11 Power 4 | . . 2 2 Propulsion 5 | . . 2 3 Utility 3 | . . 1 2 Weapon 5 | . . 1 4 Highest Loss Streak 11 | . . 4 11 Average Slot Usage (%) 86 | . 97 86 77 Engine 10 | . 14 10 7 Treads 16 | . . 18 21 Wheel 5 | . 28 2 . Device 8 | . 11 7 7 Storage 11 | . 14 11 9 Processor 9 | . . 11 9 Protection 1 | . . 2 . Ballistic Gun 14 | . 14 15 14 Ballistic Cannon 5 | . 8 6 . Launcher 1 | . . . 7 Naked Turns . | . . . . Heaviest Build 48 | 11 18 48 47 Greatest Support 60 | 20 20 60 60 Greatest Overweight (x) 15 | . . 2 15 Average Overweight (x) . | . . . . Largest Inventory Capacity 12 | 6 6 12 12 Average Capacity 10 | 4 6 11 12 Most Carried 12 | 4 6 12 12 Average Carried 8 | 2 5 9 11 Final Capacity 12 | 6 6 12 12 Final Carried 12 | 4 6 12 10 Class Distribution -------------------- 75% | Mutant 14% | Scavenger-Mutant 10% | Scavenger-Skirmisher Dominant Class ---------------- Mutant | -10/Materials Mutant | -9/Materials Scavenger-Skirmisher | -8/Materials Resources | -11 -10 -9 -8 ----------- Run | Scr Mat Mat Mat Matter Collected 1273 | 197 66 1010 . Remotely . | . . . . Salvage Created 1342 | . 66 980 296 Parts 83 | . 2 69 12 Haulers Intercepted . | . . . . Recyclers Shooed . | . . . . Parts Field Recycled . | . . . . Retrieved Matter . | . . . . Parts Self-Destructed . | . . . . Prevented . | . . . . Kills | -11 -10 -9 -8 ------- Run | Scr Mat Mat Mat Combat Hostiles Destroyed 31 | . 1 22 8 Guns 19 | . 1 16 2 Cannons 6 | . . 6 . AOE 6 | . . . 6 Classes Destroyed 9 | . 2 7 . Builder 1 | . . 1 . Tunneler 1 | . . 1 . Recycler 2 | . . 1 1 Operator 1 | . 1 . . Watcher 6 | . . 5 1 Swarmer 7 | . . 6 1 Grunt 18 | . 1 11 6 Brawler 2 | . . 2 . Sentry 4 | . . 3 1 Best Kill Streak 6 | . 1 6 6 Combat Bots Only 6 | . 1 6 5 Max Kills in Single Turn 2 | . 1 2 2 Gunslinging . | . . . . Exploded 2 | . . . 2 Melee . | . . . . Uniques/NPCs Destroyed . | . . . . Combat | -11 -10 -9 -8 -------- Run | Scr Mat Mat Mat Damage Taken 2853 | . 108 1108 1637 Core 832 | . 47 232 553 Absorbed by Shields . | . . . . Core Remaining (%) 74 | 100 81 42 . Volleys Fired 87 | . 8 68 11 Largest 3 | . 2 2 3 Hottest 76 | . 70 58 76 Shots Fired 176 | . 16 135 25 Gun 116 | . 14 87 15 Cannon 50 | . 2 48 . Launcher 10 | . . . 10 Special . | . . . . Kinetic 159 | . 10 135 14 Thermal 7 | . 6 . 1 Explosive 10 | . . . 10 Electromagnetic . | . . . . Robot Hit Streak 15 | . 15 12 7 Robot Miss Streak 4 | . 1 4 1 Penetration Max . | . . . . Secondary Targets 1 | . . 1 . Max Gunslinging Chain 1 | . . 1 . Shots Hit Robots 106 | . 15 74 17 Core Hits 64 | . 4 36 24 Critical Hits 2 | . 1 1 . Critical Kills 1 | . . 1 . Critical Parts Destroyed 1 | . 1 . . Melee Attacks . | . . . . Impact . | . . . . Slashing . | . . . . Piercing . | . . . . Sneak Attacks . | . . . . Combat Hostiles . | . . . . Follow-up Attacks . | . . . . Damage Inflicted 2478 | . 232 1203 1043 Guns 1227 | . 191 854 182 Cannons 364 | . 37 327 . Explosions 861 | . . . 861 Melee . | . . . . Ramming 26 | . 4 22 . Kinetic 1501 | . 154 1181 166 Thermal 90 | . 74 . 16 Explosive 861 | . . . 861 Electromagnetic . | . . . . Impact . | . . . . Slashing . | . . . . Piercing . | . . . . Highest Corruption 2 | . . 2 . Average Corruption 2 | . . 2 . Corruption Purged . | . . . . Effects 16 | . . 16 . Message Errors 4 | . . 4 . Heat Flow Errors 5 | . . 5 . Energy Discharges 2 | . . 2 . Data Loss (minor) 2 | . . 2 . Targeting Errors 3 | . . 3 . Overload Shots . | . . . . Overflow Damage 19 | . . . 19 Projectiles . | . . . . Explosions 19 | . . . 19 Melee . | . . . . Knockbacks 2 | . . 2 . Impact . | . . . . Kinetic 2 | . . 2 . Secondary . | . . . . Self-Inflicted Damage 89 | . 2 . 87 Shots 4 | . . . 4 Rammed 5 | . 1 4 . Targets Rammed 5 | . 1 4 . Kicked . | . . . . Crushed . | . . . . Highest Temperature 202 | . 117 202 72 Average Temperature 51 | . 62 50 42 Received Heat Transfer 927 | . 63 330 534 Siege Activations . | . . . . Robots Corrupted . | . . . . Combat Hostiles . | . . . . Parts Fried . | . . . . Impact Corruptions . | . . . . Robots Melted . | . . . . Combat Hostiles . | . . . . Parts Melted 1 | . 1 . . Heat Transferred 259 | . 222 . 37 Parts Sabotaged . | . . . . Parts Stolen . | . . . . Parts Stripped . | . . . . Power Chain Reactions . | . . . . Missiles Intercepted . | . . . . Alert | -11 -10 -9 -8 ------- Run | Scr Mat Mat Mat Peak Influence 311 | . 77 311 295 Average Influence 118 | . 37 142 98 Maximum Alert Level 1 | . . 1 1 Low Security (%) 82 | . . . . Level 1 17 | . . . . Level 2 . | . . . . Level 3 . | . . . . Level 4 . | . . . . Level 5 . | . . . . High Security . | . . . . Max Security . | . . . . Squads Dispatched 5 | . . 3 2 Investigation 2 | . . 2 . Extermination . | . . . . Reinforcement 3 | . . 1 2 Assault . | . . . . Garrison . | . . . . Intercept . | . . . . Construction Impeded 1 | . . . 1 Haulers Reinforced . | . . . . Stealth | -11 -10 -9 -8 --------- Run | Scr Mat Mat Mat Distress Signals . | . . . . Communications Jammed . | . . . . Distress Signals . | . . . . Times Spotted 56 | . 5 31 20 Peak Tracking Total 9 | . 2 6 9 Tactical Retreats 2 | . 1 . 1 Traps | -11 -10 -9 -8 ------- Run | Scr Mat Mat Mat Traps Triggered 2 | . . 2 . Indirectly . | . . . . Trap Hack Attempts . | . . . . Triggered . | . . . . Disarmed . | . . . . Reprogrammed . | . . . . Reused . | . . . . Traps Extracted . | . . . . Installed . | . . . . Triggered . | . . . . Machines | -11 -10 -9 -8 ---------- Run | Scr Mat Mat Mat Machines Disabled 2 | . . 1 1 Max in Single Turn 1 | . . 1 1 Machines Sabotaged . | . . . . Garrisons Compromised . | . . . . Overloaded Fab Kills . | . . . . Fab Network Shutdowns . | . . . . Hacking | -11 -10 -9 -8 --------- Run | Scr Mat Mat Mat Machines Accessed 8 | . 3 4 1 Terminals 7 | . 2 4 1 Fabricators . | . . . . Repair Stations . | . . . . Recycling Units 1 | . 1 . . Scanalyzers . | . . . . Garrison Access . | . . . . Total Hacks 14 | . 5 7 2 Successful 11 | . 4 6 1 Failed 3 | . 1 1 1 Catastrophic . | . . . . Database Lockouts . | . . . . Manual . | . . . . Terminals 13 | . 4 7 2 Fabricators . | . . . . Repair Stations . | . . . . Recycling Units 1 | . 1 . . Scanalyzers . | . . . . Garrison Access . | . . . . Terminal Hacks 10 | . 3 6 1 Record 3 | . . 3 . Robot Analysis 1 | . 1 . . Emergency Access Points 1 | . 1 . . Terminal Index 1 | . . 1 . Unreport Threat 1 | . . 1 . Locate Traps 1 | . 1 . . Hauler Manifests 1 | . . . 1 Registered Components 1 | . . 1 . Fabricator Hacks . | . . . . Repair Station Hacks . | . . . . Recycling Unit Hacks 1 | . 1 . . Report Inventory 1 | . 1 . . Scanalyzer . | . . . . Garrison Access Hacks . | . . . . Unauthorized Hacks . | . . . . Terminals . | . . . . Fabricators . | . . . . Repair Stations . | . . . . Recycling Units . | . . . . Scanalyzers . | . . . . Garrison Access . | . . . . Data Cores Recovered 1 | . 1 . . Used . | . . . . Hacking Detections 4 | . 1 2 1 Full Trace Events . | . . . . Feedback Events . | . . . . Feedback Blocked . | . . . . Robot Schematics Acquired . | . . . . Robots Built . | . . . . Matter . | . . . . Time . | . . . . Total Robot Build Rating . | . . . . Part Schematics Acquired . | . . . . Parts Built . | . . . . Matter . | . . . . Time . | . . . . Total Part Build Rating . | . . . . Parts Repaired . | . . . . Time . | . . . . Parts Recycled . | . . . . Recycled Matter . | . . . . Retrieved Matter . | . . . . Retrieved Components . | . . . . Parts Scanalyzed . | . . . . Part Schematics Acquired . | . . . . Parts Damaged . | . . . . Bothacking | -11 -10 -9 -8 ------------ Run | Scr Mat Mat Mat Used RIF Installer . | . . . . Robots Hacked . | . . . . Non-combat . | . . . . Combat . | . . . . Robot Hacks Applied . | . . . . Relay Couplers Released . | . . . . Robots Rewired . | . . . . Allies Hacked . | . . . . Hacks Repelled . | . . . . Allies | -11 -10 -9 -8 -------- Run | Scr Mat Mat Mat Total Allies . | . . . . Largest Group . | . . . . Highest-Rated Group . | . . . . Highest-Rated Ally . | . . . . Total Orders . | . . . . Ally Attacks . | . . . . Total Damage . | . . . . Kills . | . . . . Allies Corrupted . | . . . . Allies Melted . | . . . . Intel | -11 -10 -9 -8 ------- Run | Scr Mat Mat Mat Robot Analysis Total 1 | . 1 . . Derelict Logs Recovered . | . . . . Drone Launches . | . . . . Drone Recoveries . | . . . . Exploration | -11 -10 -9 -8 ------------- Run | Scr Mat Mat Mat Turns Passed 2199 | 61 275 1541 322 Spaces Moved 1266 | 63 283 762 158 Core 20 | 15 . . 5 Treads 798 | . . 646 152 Legs . | . . . . Wheels 448 | 48 283 116 1 Hover . | . . . . Flight . | . . . . Fastest Speed 50 | 50 80 80 110 Average Speed 143 | 72 80 166 176 Slowest Speed 800 | 80 80 200 800 Overloaded Moves . | . . . . Propulsion Burnouts . | . . . . Robots Hopped . | . . . . Cave-ins Triggered . | . . . . Exploration Rate (%) 31 | 4 49 50 24 Regions Visited 3 Branch Regions . Pre-discovered Areas . | . . . . Known Exits Taken 1 | . . 1 . Unknown Exits Taken 2 | 1 1 . . Scrap Searched . | . . . . Spaces Dug . | . . . . Terrain Destroyed 60 | . . . 60 Melee . | . . . . Projectile . | . . . . AOE 60 | . . . 60 Actions | -11 -10 -9 -8 --------- Run | Scr Mat Mat Mat Total 1474 | 77 317 901 179 Wait 35 | . . 34 1 Move 1263 | 62 282 761 158 Hop . | . . . . Pick Up 40 | 9 11 17 3 Fast Attach 1 | 1 . . . Attach 22 | 5 1 11 5 Detach 1 | . . 1 . Swap 7 | . 5 1 1 Drop 13 | . 9 4 . Fire 87 | . 8 68 11 Melee . | . . . . Ram 1 | . 1 . . Kick . | . . . . Crush 4 | . . 4 . Escape Stasis . | . . . . Rewire . | . . . . Trap . | . . . . Miscellaneous . | . . . . Route ------- -11/Scrapyard -10/Materials (discovered 2 exits: *Mat x2) -9/Materials -8/Materials History --------- Turn | Location | Event 8 | -11/Scrapyard | Discovered new exit (range 16) 62 | -11/Scrapyard | Entered Materials 177 | -10/Materials | Discovered new exit (range 3) 301 | -10/Materials | Build established: Mutant 315 | -10/Materials | Discovered new exit (range 8) 337 | -10/Materials | Entered another Materials area 337 | -9/Materials | Evolved 2 slots: Propulsion x1, Utility x1 516 | -9/Materials | Lost 4 parts (1p2n1u) 682 | -9/Materials | Core integrity fell below 50% 1863 | -9/Materials | Discovered new exit (range 7) 1876 | -9/Materials | Identified exit to Materials 1878 | -9/Materials | Entered another Materials area 1878 | -8/Materials | Evolved 2 slots: Power x1, Weapon x1 2178 | -8/Materials | Core integrity fell below 50% 2196 | -8/Materials | Core integrity fell below 20% 2200 | -8/Materials | Destroyed by Y-45 Defender with Heavy Assault Rifle Last Messages --------------- K-01 Serf collects debris. G-47 Trooper destroyed. The unstable cave ceiling collapses. Imp. Sensor Array destroyed. K-01 Serf collects debris. Acquired Imp. Ion Engine. Imp. Medium Laser destroyed. U-05 Engineer lays Concrete. K-01 Serf collects debris. U-05 Engineer lays Concrete. Knocked back. Fusion Modulator explodes. Imp. Ion Engine destroyed. Terminal disabled. U-05 Engineer lays Concrete. Med. Armor Plating destroyed. U-05 Engineer lays Concrete. Acquired Com. Wheel. U-05 Engineer lays Concrete. The unstable cave ceiling collapses. Map ----- +----------------------------------------------------+ | ??????????? % #????????????? ????????????????? | | ??????????? = +????????????? #???????????????? | | ???????????# #?????????????+#???????????????? | | ???????????# #??######???? #???????????????? | | ???????????# #?## #???? ???????????????? | | ???????????# ### =#??? #???????????????? | | ???????????# # #??? #???????????????? | | ?########### #??? #???##??????????? | | ?# + ## !#??? ??? #??????????? | | ?# ## % # ####/###? ???????????? | | ?# ### ## ## #######??????? | | ?# # *= %% ## ?????? | | / # " =% ?????? | | # # "" # % ?????? | | ?# # " ### # u [ ####?????????? | | ?# # """ # %=##???????????? | | ?# # """""" #; ;g * ###??????????? | | ?#######+## ? #; Y ; #??????????? | | ???????# ## ? ! [ ;; ; g #??????????? | | ???????# #?##########; Y;% # ?????????? | | ???????# #?# ; ; ??????? | | ???????# #?# [ ; ; [[! #??????????? | | ???????# #?# ; ; [! #??????????? | | ???????# #?# ] ! ;] **; [! #??????????? | | ???????# ########+###; b* ; ????????? | | ???????# #?## @ ; ???????? | | ???????########## #??# !Y !# ???????? | | ????????????????# #??## #### """ [[ ????????? | | ????????????????# #???##???? """ [[ ##????????? | | ???????????###### #????????? """ ##?????????? | | ?########### ## #????????? ? #??????????? | | ?# ## T #????????? ? +??????????? | | ?# """ ## ####????????? ? ??????????????? | | ## """ ### ##???????????? ? "??????????????? | | ## """ #?# #????????????? ???Y??????????????? | | ## | #?# ####???????????????????????????????? | | ## """ #?# #???????????????????????????????? | | ## """ #?# #???????????????????????????????? | | ## """ #?# #???????????????????????????????? | | ## [#?# #???????????????????????????????? | | ##+#######?# #???????????????????????????????? | | #??# #???????????????????????????????? | | #?# # #???????????????????????????????? | | """ #?# # #???????????????????????????????? | | """"" #?# # #???????????????????????????????? | | """"" #?## ##+#####???????????????????????????? | | """"" #??# # #???????????????????????????? | | """ #??# #= """ #???????????????????????????? | | #??# # """ #???????????????????????????? | | #??# # """ #???????????????????????????? | +----------------------------------------------------+ Best States ------------- Heat Dissipation 31 Energy Generation 12 Energy Capacity 265 Matter Stores 300 Matter Capacity 300 Sight Range 16 Robot Scan Range 13 Terrain Scan Density 10 ECM Strength 1 Armor Coverage 225 Evasion (%) 50 Recoil Reduction 3 Item Schematics ----------------- None Robot Schematics ------------------ None Fabricated ------------ Nothing Alien Tech Used ----------------- None Achievements -------------- Everything Is Under Control I Spy Challenges ------------ None Game ------ Seed DisruptorGlidesysTearclaws Manual? 0 Play Time 00:24:34 Cumulative 5.4 hours Start 2019.11.09 @ 18:34:50 End 2019.11.09 @ 18:58:25 Sessions 1 Manual Loads 0 Difficulty Rogue Special Mode None Game No. 10 Rogue 10 Adventurer 0 Explorer 0 Win Type - Total 0 Types 0/0/0/0/0/0/0 Lore% 12 Gallery% 12 Achievement% 12 Wizard Run 0 Options --------- ASCII 0 Keyboard 0 Movement Mouse Keybinds 0 Fullscreen 1 Font 20/SmallcapsGlow Map View 66x50 Tactical HUD 0 Map Filters NONE Filters NONE Steam 1 RUN: b78e853d-5afb-4ca9-86f8-8058f6cf2f70